Cogmind - Beta 17 @@@ ROGUE MODE // 2026.07.08 @ 17:16:47 Player: beans Result: Destroyed by D-63 Destroyer with Heavy Rocket Launcher Performance ------------- Evolutions (1) 500 Regions Visited (5) 1000 Robots Destroyed (34) 170 Value Destroyed (687) 687 Prototype IDs (2) 40 Alien Tech Used (0) 0 Bonus (5979) 5979 TOTAL SCORE: 8376 Bonus ------- Follower Combat Kills 321 Prayed to X0-1V1 5000 Major X0-1V1 Interference 200 Met Imprinter 300 Was Imprinted 300 Friendly Fire -142 Cogmind --------- Core Integrity 0/200 Matter 612/1100 Energy 988/1200 System Corruption 0% Temperature Cool (0) Movement Treading (160) Location -6/Proximity Caves Parts ------- > --- POWER (1) -------- (None) > --- PROPULSION (3) --- Light Treads (fused) > --- UTILITY (3) ------ X0-1V1's Piety Tracker > --- WEAPON (3) ------- Light EM Pulse Cannon > --- INVENTORY (5) ---- Hacking Drone Bay (1/1) Long-range Missile Launcher GAL Module Peak State ------------ > --- POWER ------------ Light Nuclear Core > --- PROPULSION ------- Light Treads Light Treads > --- UTILITY ---------- Improved Heat Sink X0-1V1's Piety Tracker > --- WEAPON ----------- Assault Rifle Gauss Rifle Makeshift Shrapnel Gun > --- INVENTORY -------- Hacking Drone Bay Light EM Pulse Cannon Light EM Pulse Cannon Grenade Launcher GAL Module [Rating: 32] Favorites ----------- Power Light Nuclear Core Engine Ion Engine Power Core Light Nuclear Core Propulsion Light Treads Treads Light Treads Utility X0-1V1's Piety Tracker Device X0-1V1's Piety Tracker Weapon Light EM Pulse Cannon Energy Cannon Light EM Pulse Cannon Ballistic Gun Assault Rifle Ballistic Cannon Light Cannon Launcher Grenade Launcher Build | -11 -10 -9 -9 -7 -6 ------- Run | Yrd Mat Mat Min Zio Pro Slots Evolved 2 | . . 2 . . . Power . | . . . . . . Propulsion 1 | . . 1 . . . Utility . | . . . . . . Weapon 1 | . . 1 . . . Parts Attached 20 | 4 6 1 1 6 2 Power 3 | 1 . . 1 1 . Engine 2 | 1 . . 1 . . Core 1 | . . . . 1 . Reactor . | . . . . . . Propulsion 2 | 2 . . . . . Treads 2 | 2 . . . . . Leg . | . . . . . . Wheel . | . . . . . . Hover . | . . . . . . Flight . | . . . . . . Utility 7 | . 3 . . 4 . Device 7 | . 3 . . 4 . Storage . | . . . . . . Processor . | . . . . . . Hackware . | . . . . . . Protection . | . . . . . . Artifact . | . . . . . . Weapon 8 | 1 3 1 . 1 2 Energy Gun . | . . . . . . Energy Cannon 2 | . 1 1 . . . Ballistic Gun 3 | 1 . . . 1 1 Ballistic Cannon 1 | . 1 . . . . Launcher 2 | . 1 . . . 1 Special Weapon . | . . . . . . Impact Weapon . | . . . . . . Slashing Weapon . | . . . . . . Piercing Weapon . | . . . . . . Special Melee Weapon . | . . . . . . Unidentified Prototypes 2 | . 1 . . 1 . Parts Lost 7 | . . . . . 7 Power 1 | . . . . . 1 Propulsion 1 | . . . . . 1 Utility 1 | . . . . . 1 Weapon 4 | . . . . . 4 Highest Loss Streak 4 | . . . . . 4 To Critical Strikes . | . . . . . . Average Backups 4 | . 3 5 5 4 3 Power . | . . 1 1 . . Propulsion . | . . . . . . Utility . | . . 1 1 1 1 Weapon 2 | . 2 3 3 2 2 Tool/Special . | . . . . . . Unused Backups . | . . . . . . Power . | . . . . . . Propulsion . | . . . . . . Utility . | . . . . . . Weapon . | . . . . . . Tool/Special . | . . . . . . Average Slot Usage (%) 75 | . 71 66 66 77 82 Engine 7 | . 14 11 11 7 . Core 4 | . . . . 3 10 Treads 23 | . 28 22 22 22 20 Device 14 | . 1 11 11 20 21 Energy Cannon 9 | . 2 15 22 17 . Ballistic Gun 12 | . 14 6 . 4 28 Ballistic Cannon 3 | . 8 . . 2 1 Peak Build Rating 32 | 4 20 20 21 30 32 Average Rating 21 | 3 6 20 20 28 31 On Entrance 15 | . 4 20 20 21 29 Avg Prop Armor Cover (%) . | . . . . . . Naked Turns . | . . . . . . Heaviest Build 17 | 7 12 14 16 17 15 Greatest Support 40 | 40 40 40 40 40 40 Greatest Overweight (x) . | . . . . . . Average Overweight (x) . | . . . . . . Largest Inventory Capacity 5 | 5 5 5 5 5 5 Average Capacity 5 | 5 5 5 5 5 5 Most Carried 5 | 4 5 5 5 5 5 Average Carried 4 | . 3 5 5 4 4 Final Capacity 5 | 5 5 5 5 5 5 Final Carried 5 | . 5 5 5 5 3 Class Distribution -------------------- 69% | Mutant 30% | Gunner Dominant Class ---------------- Mutant | -10/Materials Mutant | -9/Materials Mutant | -9/Mines Mutant | -7/Zion Gunner | -6/Proximity Caves Resources | -11 -10 -9 -9 -7 -6 ----------- Run | Yrd Mat Mat Min Zio Pro Matter Collected 1252 | 240 239 30 369 48 326 Remotely . | . . . . . . Salvage Created 1163 | 15 347 44 472 . 285 Parts 70 | 3 32 3 21 . 11 Haulers Intercepted . | . . . . . . Recyclers Shooed 4 | . 2 1 1 . . Parts Field Recycled . | . . . . . . Retrieved Matter . | . . . . . . Parts Self-Destructed 14 | . . . . . 14 Prevented 2 | . . . . . 2 Parts Restored . | . . . . . . Kills | -11 -10 -9 -9 -7 -6 ------- Run | Yrd Mat Mat Min Zio Pro Combat Hostiles Destroyed 19 | . 11 . 4 . 4 Guns 8 | . 4 . . . 4 Cannons 7 | . 3 . 4 . . AOE 4 | . 4 . . . . Classes Destroyed 11 | 1 5 . 3 . 2 Worker 4 | . 1 2 1 . . Builder 4 | . 4 . . . . Tunneler 2 | 1 1 . . . . Recycler 3 | . . . 3 . . Watcher 1 | . 1 . . . . Swarmer 8 | . 6 . . . 2 Grunt 8 | . 5 . 2 . 1 Brawler 1 | . . . 1 . . Duelist 1 | . . . 1 . . Sentry 1 | . . . . . 1 Fireman 1 | . . . . . 1 Best Kill Streak 6 | 1 3 1 6 . 4 Combat Bots Only 4 | . 3 . 2 . 4 Max Kills in Single Turn 2 | 1 1 1 1 . 2 Gunslinging . | . . . . . . Exploded 1 | . 1 . . . . Melee . | . . . . . . Uniques/NPCs Destroyed . | . . . . . . Combat | -11 -10 -9 -9 -7 -6 -------- Run | Yrd Mat Mat Min Zio Pro Hostile Shots Fired 83 | . 55 . 5 . 23 Missed 27 | . 21 . . . 6 Hits 56 | . 34 . 5 . 17 Melee 1 | . . . 1 . . Projectile 55 | . 34 . 4 . 17 AOE 7 | . . . . . 7 Critical Strikes 1 | . 1 . . . . Damage Taken 1357 | . 425 . 78 . 854 Core 319 | . 98 . 10 . 211 Absorbed by Shields . | . . . . . . Ignored by Resistances 19 | . . . . . 19 Regen/Repaired (Parts) 300 | . . . . 300 . Core Remaining (%) 100 | 100 100 . . . . Volleys Fired 95 | 1 54 12 11 1 16 Largest 3 | 1 2 2 2 2 3 Hottest 112 | 20 56 112 112 112 112 Shots Fired 168 | 1 89 14 22 2 40 Gun 66 | 1 35 . . . 30 Cannon 89 | . 43 14 22 2 8 Launcher 13 | . 11 . . . 2 Special . | . . . . . . Kinetic 100 | 1 67 . . . 32 Thermal . | . . . . . . Explosive 13 | . 11 . . . 2 Electromagnetic 55 | . 11 14 22 2 6 Robot Hit Streak 11 | 1 11 2 4 . 7 Robot Miss Streak 4 | . 3 3 1 . 4 Penetration Max 1 | . . . . . 1 Secondary Targets 2 | . . . . . 2 Max Gunslinging Chain 1 | . . . . . 1 Shots Hit Robots 95 | 1 48 6 12 . 28 Core Hits 56 | 1 26 2 9 . 18 Critical Kills 2 | . . . . . 2 Critical Parts Destroyed . | . . . . . . Critical Strikes 4 | . 1 1 . . 2 Destroy 2 | . . . . . 2 Blast 1 | . 1 . . . . Corrupt 1 | . . 1 . . . Melee Attacks . | . . . . . . Impact . | . . . . . . Slashing . | . . . . . . Piercing . | . . . . . . Sneak Attacks . | . . . . . . Combat Hostiles . | . . . . . . Follow-up Attacks . | . . . . . . Damage Inflicted 2149 | 12 1141 140 257 . 599 Guns 710 | 12 231 . . . 467 Cannons 1023 | . 554 140 257 . 72 Explosions 416 | . 356 . . . 60 Melee . | . . . . . . Ramming . | . . . . . . Kinetic 1086 | 12 573 . . . 501 Thermal 29 | . 29 . . . . Explosive 387 | . 327 . . . 60 Electromagnetic 647 | . 212 140 257 . 38 Impact . | . . . . . . Slashing . | . . . . . . Piercing . | . . . . . . Highest Corruption . | . . . . . . Average Corruption . | . . . . . . Corruption Purged . | . . . . . . Corruption Blocked . | . . . . . . Overload Shots . | . . . . . . Overflow Damage 5 | . 5 . . . . Projectiles 3 | . 3 . . . . Explosions 2 | . 2 . . . . Melee . | . . . . . . Knockbacks 2 | . 2 . . . . Impact . | . . . . . . Kinetic 2 | . 2 . . . . Secondary . | . . . . . . Self-Inflicted Damage 74 | . 74 . . . . Shots 4 | . 4 . . . . Rammed 2 | . 2 . . . . Targets Rammed 2 | . 2 . . . . Kicked . | . . . . . . Crushed . | . . . . . . Highest Temperature 142 | . 96 84 142 6 7 Average Temperature 35 | . 24 27 55 4 4 Received Heat Transfer 216 | . 132 . 24 . 60 Siege Activations . | . . . . . . Martial Activations . | . . . . . . Shielding Activations . | . . . . . . Robots Disrupted . | . . . . . . Combat Hostiles . | . . . . . . Robots Corrupted . | . . . . . . Combat Hostiles . | . . . . . . Parts Fried 3 | . 2 . 1 . . Impact Corruptions . | . . . . . . Robots Melted . | . . . . . . Combat Hostiles . | . . . . . . Parts Melted . | . . . . . . Heat Transferred 50 | . 50 . . . . Parts Sabotaged . | . . . . . . Parts Stolen . | . . . . . . Parts Stripped . | . . . . . . Power Chain Reactions 1 | . 1 . . . . Alert | -11 -10 -9 -9 -7 -6 ------- Run | Yrd Mat Mat Min Zio Pro Maximum Alert Level . | . . . . . . Low Security (%) 100 | 100 100 100 100 . . Level 1 . | . . . . . . Level 2 . | . . . . . . Level 3 . | . . . . . . Level 4 . | . . . . . . Level 5 . | . . . . . . High Security . | . . . . . . Max Security . | . . . . . . Peak Influence 184 | 5 98 34 184 . . Initial 24 | . 3 24 . . . Average 37 | . 32 17 77 . . Influence Increases 1076 | 5 357 25 254 . 435 Destroy 0b10 Robot/C 580 | . 220 . 80 . 280 Destroy 0b10 Robot/NC 70 | 5 35 10 20 . . Destroy Leader 82 | . 52 . 20 . 10 Allied During Kill 145 | . . . . . 145 Disable Machine 60 | . 15 15 30 . . Destroy Structure 35 | . 35 . . . . Miscellaneous 104 | . . . 104 . . Influence Decreases 853 | . 304 83 100 154 212 Entered New Map 190 | . 2 34 . 154 . Time Decay 493 | . 302 49 100 . 42 Lost Part 70 | . . . . . 70 Lost Ally 100 | . . . . . 100 Squads Dispatched 1 | . 1 . . . . Investigation . | . . . . . . Extermination . | . . . . . . Reinforcement 1 | . 1 . . . . Assault . | . . . . . . Garrison . | . . . . . . Intercept . | . . . . . . Searches Triggered . | . . . . . . Construction Impeded . | . . . . . . Haulers Reinforced . | . . . . . . Active Scanning Responses . | . . . . . . Cargo Convoy Interrupts . | . . . . . . Stealth | -11 -10 -9 -9 -7 -6 --------- Run | Yrd Mat Mat Min Zio Pro Distress Signals 17 | . 2 . . . 15 Communications Jammed . | . . . . . . Distress Signals . | . . . . . . Times Spotted 36 | . 17 . 3 . 16 Peak Tracking Total 13 | . 4 . 2 . 13 Tactical Retreats . | . . . . . . Traps | -11 -10 -9 -9 -7 -6 ------- Run | Yrd Mat Mat Min Zio Pro Traps Triggered . | . . . . . . Indirectly . | . . . . . . Trap Hack Attempts . | . . . . . . Triggered . | . . . . . . Disarmed . | . . . . . . Reprogrammed . | . . . . . . Reused . | . . . . . . Traps Extracted . | . . . . . . Installed . | . . . . . . Triggered . | . . . . . . Machines | -11 -10 -9 -9 -7 -6 ---------- Run | Yrd Mat Mat Min Zio Pro Machines Disabled 4 | . 1 1 2 . . Max in Single Turn 2 | . 1 1 2 . . Machines Repaired . | . . . . . . Machines Dismantled . | . . . . . . Machines Sabotaged . | . . . . . . Overloaded Fab Kills . | . . . . . . Hacking | -11 -10 -9 -9 -7 -6 --------- Run | Yrd Mat Mat Min Zio Pro Machines Accessed 2 | . . . . 1 1 Terminals 1 | . . . . . 1 Fabricators . | . . . . . . Repair Stations . | . . . . . . Recycling Units . | . . . . . . Scanalyzers . | . . . . . . Garrison Access . | . . . . . . Total Hacks 8 | . . . . 4 4 Successful 8 | . . . . 4 4 Failed . | . . . . . . Catastrophic . | . . . . . . Database Lockouts . | . . . . . . Manual 2 | . 2 . . . . Terminals 4 | . . . . . 4 Fabricators . | . . . . . . Repair Stations . | . . . . . . Recycling Units . | . . . . . . Scanalyzers . | . . . . . . Garrison Access . | . . . . . . Terminal Hacks 8 | . . . . 4 4 Record 4 | . . . . . 4 Part Schematic 4 | . . . . 4 . Fabricator Hacks . | . . . . . . Repair Station Hacks . | . . . . . . Recycling Unit Hacks . | . . . . . . Scanalyzer . | . . . . . . Garrison Access Hacks . | . . . . . . Unauthorized Hacks . | . . . . . . Terminals . | . . . . . . Fabricators . | . . . . . . Repair Stations . | . . . . . . Recycling Units . | . . . . . . Scanalyzers . | . . . . . . Garrison Access . | . . . . . . Data Cores Recovered . | . . . . . . Used . | . . . . . . Hacking Detections . | . . . . . . Full Trace Events . | . . . . . . Feedback Events . | . . . . . . Feedback Blocked . | . . . . . . Robot Schematics Acquired 2 | . . . . 2 . Robots Built . | . . . . . . Authchips . | . . . . . . Time . | . . . . . . Total Robot Build Rating . | . . . . . . Part Schematics Acquired 20 | . . . . 20 . Parts Built . | . . . . . . Authchips . | . . . . . . Time . | . . . . . . Total Part Build Rating . | . . . . . . Part Studies Acquired . | . . . . . . Parts Repaired . | . . . . . . Time . | . . . . . . Parts Recycled . | . . . . . . Recycled Matter . | . . . . . . Retrieved Matter . | . . . . . . Retrieved Components . | . . . . . . Parts Scanalyzed . | . . . . . . Part Schematics Acquired . | . . . . . . Parts Damaged . | . . . . . . Bothacking | -11 -10 -9 -9 -7 -6 ------------ Run | Yrd Mat Mat Min Zio Pro Used RIF Installer . | . . . . . . Robots Hacked . | . . . . . . Non-combat . | . . . . . . Combat . | . . . . . . Robot Hacks Applied . | . . . . . . Relay Couplers Released . | . . . . . . Fabnet Peak Effective % . | . . . . . . Robots Rewired . | . . . . . . Allies Hacked . | . . . . . . Hacks Repelled . | . . . . . . Allies | -11 -10 -9 -9 -7 -6 -------- Run | Yrd Mat Mat Min Zio Pro Total Allies 7 | . . . . 7 . Largest Group 7 | . . . . 7 7 Highest-Rated Group 241 | . . . . 241 241 Highest-Rated Ally 38 | . . . . 38 38 Total Orders . | . . . . . . Ally Attacks 53 | . . . . . 53 Total Damage 1628 | . . . . . 1628 Kills 11 | . . . . . 11 Allies Corrupted . | . . . . . . Allies Melted . | . . . . . . X0-1V1 Amusement Gains 50 | . 5 5 . . 40 Good Acts 7 | . 1 . 1 . 5 Bad Acts 4 | . . . 2 . 2 Intel | -11 -10 -9 -9 -7 -6 ------- Run | Yrd Mat Mat Min Zio Pro Active Infowar (turns) . | . . . . . . Robot Analysis Total . | . . . . . . Derelict Logs Recovered 4 | . . . 1 1 2 Drone Launches . | . . . . . . Drone Recoveries . | . . . . . . Exploration | -11 -10 -9 -9 -7 -6 ------------- Run | Yrd Mat Mat Min Zio Pro Turns Passed 3705 | 52 1032 106 245 1332 938 Spaces Moved 1785 | 35 479 50 128 757 336 Core 12 | 12 . . . . . Treads 1773 | 23 479 50 128 757 336 Legs . | . . . . . . Wheels . | . . . . . . Hover . | . . . . . . Flight . | . . . . . . Fastest Speed 50 | 50 160 160 160 160 160 Average Speed 159 | 122 160 160 160 160 160 Slowest Speed 160 | 160 160 160 160 160 160 Overloaded Moves . | . . . . . . Propulsion Burnouts . | . . . . . . Robots Hopped . | . . . . . . Potential Cave-ins . | . . . . . . Cave-ins Triggered . | . . . . . . Exploration Rate (%) 43 | 3 82 9 23 84 57 Regions Visited 5 Branch Regions 3 Pre-discovered Areas 2 | . . . . 1 1 Known Exits Taken . | . . . . . . Unknown Exits Taken 5 | 1 1 1 1 1 . Scrap Searched 4 | . . . 1 1 2 Spaces Dug . | . . . . . . Terrain Destroyed 33 | . 33 . . . . Melee . | . . . . . . Projectile . | . . . . . . AOE 33 | . 33 . . . . Terrain Rammed . | . . . . . . Walls Destroyed . | . . . . . . Machines Disabled . | . . . . . . Actions | -11 -10 -9 -9 -7 -6 --------- Run | Yrd Mat Mat Min Zio Pro Total 2482 | 43 652 62 146 874 705 Wait 554 | . 101 . 6 104 343 Move 1780 | 34 478 49 127 756 336 Hop . | . . . . . . Pick Up 12 | 4 6 . . 1 1 Fast Attach 10 | . 3 . 1 4 2 Attach 9 | 4 1 . . 1 3 Detach 2 | . . . . 1 1 Swap 9 | . 5 1 . 3 . Drop 9 | . 2 . 1 3 3 Fire 95 | 1 54 12 11 1 16 Melee . | . . . . . . Ram . | . . . . . . Kick . | . . . . . . Crush 2 | . 2 . . . . Escape Stasis . | . . . . . . Rewire . | . . . . . . Trap . | . . . . . . Miscellaneous . | . . . . . . Route ------- -11/Scrapyard -10/Materials (discovered 5 exits: [*Mat x2] / [*Min x2] / [*Sub]) -9/Materials -9/Mines (discovered 2 exits: [*Mat] / *Zio) -7/Zion -6/Proximity Caves (discovered 1 exit: Fac) History --------- Turn | Location | Event 7 | -11/Scrapyard | Discovered new exit (range 16) 53 | -11/Scrapyard | Entered Materials 242 | -10/Materials | Discovered new exit (range 13) 307 | -10/Materials | Build established: Mutant 314 | -10/Materials | Discovered new exit (range 6) 380 | -10/Materials | Discovered new exit (range 6) 546 | -10/Materials | Discovered new exit (range 16) 883 | -10/Materials | Discovered new exit (range 8) 900 | -10/Materials | Prayed at D.C.S.S. Altar Unit 927 | -10/Materials | Matter capacity permanently improved by X0-1V1 (+200; -100 max core) 1085 | -10/Materials | Entered another Materials area 1085 | -9/Materials | Evolved 2 slots: Propulsion x1, Weapon x1 1182 | -9/Materials | Discovered new exit (range 6) 1191 | -9/Materials | Entered Mines 1269 | -9/Mines | Discovered new exit (range 9) 1383 | -9/Mines | X0-1V1 added 0b10 threat records associated with you (minor) 1388 | -9/Mines | TH resistance permanently improved by X0-1V1 (+10%; -100 max core) 1421 | -9/Mines | A Derelict revealed a hidden shortcut to a safe place 1436 | -9/Mines | Entered Zion 1492 | -7/Zion | Given the Hacking Drone Bay 1492 | -7/Zion | Found Prototype Device 1492 | -7/Zion | Identified Hacking Drone Bay 1605 | -7/Zion | Discovered new exit (range 16) 1809 | -7/Zion | Visited the Megawrench Repair Shop 1809 | -7/Zion | Megawrench repaired 5 parts 1942 | -7/Zion | Learned 8 Factory zone layouts 2062 | -7/Zion | Met Imprinter 2090 | -7/Zion | Imprinted 2093 | -7/Zion | Declared Zion's savior 2296 | -7/Zion | Found GAL Module 2662 | -7/Zion | Gained Derelict followers 2768 | -7/Zion | Entered Proximity Caves 2768 | -6/Proximity Caves | Accompanied by 7 allies 2769 | -6/Proximity Caves | Identified exit to Factory 2808 | -6/Proximity Caves | Build established: Gunner 3281 | -6/Proximity Caves | Utility slot count permanently improved by X0-1V1 (+1) 3397 | -6/Proximity Caves | Learned location of Extension (-5) 3538 | -6/Proximity Caves | Spotted B-75 Beast 3551 | -6/Proximity Caves | Allies destroyed B-75 Beast 3607 | -6/Proximity Caves | Attracted the attention of an 0b10 base 3652 | -6/Proximity Caves | Learned location of 2 exits from Upper Caves 3652 | -6/Proximity Caves | Learned Factory emergency access door positions 3665 | -6/Proximity Caves | Lost 3 parts (1n2w) 3695 | -6/Proximity Caves | X0-1V1 upgraded hostiles (x1) 3696 | -6/Proximity Caves | Core integrity fell below 50% 3699 | -6/Proximity Caves | Core integrity fell below 20% 3706 | -6/Proximity Caves | Destroyed by D-63 Destroyer with Heavy Rocket Launcher Last Messages --------------- Loading 6 Proximity Caves zones... >>Query(Status Report 728X) INTERCEPTED DERELICT INTEL. Data stored: Factory emergency access points. Slug penetrates D-53 Grenadier. Slug penetrates Reinforced Barrier. X0-1V1 tips the scales in a new dimension. D-53 Grenadier reshaped into more powerful Demolisher. ZZ-3YS(M) destroyed. 9C-IP4(g) destroyed. Gauss Rifle destroyed. DQ-J38(M) destroyed. C5-TZ8(M) destroyed. Lgt. Nuclear Core destroyed. Acquired 5 matter. OX-HKP(M) destroyed. Imp. Heat Sink destroyed. Lgt. EM Pulse Cannon destroyed. X0-1V1 bursts into laughter! Map ----- +----------------------------------------------------+ | ?????????????????????????????????????????????????? | | ?????????????????????????????????????????????????? | | ?????????????????????????????????????????????????? | | ?????????????????????????????????????????????????? | | ?????????????????????????????????????????????????? | | ?????????????????????????????????????????????????? | | ?????????????????????????????????????????????????? | | ?????????????????????????????????????????????????? | | ?????????????????????????????????????????????????? | | ?????????????????????????????????????????????????? | | ??????????????????????? ??????????????????????? | | ????????????????????? ??????????????????????? | | ?????????????????? ??????????????????????? | | ???????????????? #?????????????????????? | | ?????????????? ######????????????????? | | ?????????????? #????????????????? | | ????????????? #????????????????? | | ????????????? #????????????????? | | ???????????? #????????????????? | | ????????????? d #????????????????? | | ??????????????? #????????????????? | | ????????????????? #????????????????? | | ??????????????????? #????????????????? | | ????????????????????? #????????????????? | | ??????????????????????? ??????????????????? | | ????????????????????????#@ #?????????????????????? | | ????????????????????????# #?????????????????????? | | ????????????????????????# #?????????????????????? | | ???????????????????????? ?????????????????????? | | ?#####?????????????????# = ????????????????????? | | ?# ####?????????#?#?## ???????????????????? | | ?# #?????????# ## ###???????????????????? | | ?## #?????????# ##??????????????????? | | ??## ######?????# ##############?????? | | ???# ### ####??## #?????? | | ???# ##??## #?????? | | ??## ##??# # ########+"###### #?????? | | ??# ##?# # #"""""" T"""#????????? | | #?# ### # # ""#????????? | | ### ## # # % "#????????? | | # ## # ##"" [ "# #?????? | | % " % % "# #?????? | | ### %|%% "# #?????? | | #?########"!%= " # #?????? | | #???????#" =% %= "" + #?????? | | #" #??????#" "##"" " + #?????? | | ### ?? # # " "" # #?????? | | ??## # # " # #?????? | | #??# ??# #$ """# #?????? | | #??## ##### ???# # " # #?????? | +----------------------------------------------------+ Best States ------------- Heat Dissipation 42 Energy Generation 14 Energy Capacity 1260 Matter Stores 655 Matter Capacity 1100 Sight Range 20 Terrain Scan Density 10 Resistance: TH 10 Evasion (%) 50 Recoil Reduction 2 Item Schematics ----------------- Battle Cannon | -7/Zion | Free Enh. Flamer | -7/Zion | Free Hvy. Riot Gun | -7/Zion | Free Phasing Sabre | -7/Zion | Free Power Amplifier | -7/Zion | Archive Med. Reactive Plating | -7/Zion | Archive Hrd. Heavy Armor Plating | -7/Zion | Archive Lyr. Medium Armor Plating | -7/Zion | Archive Imp. Focal Shield | -7/Zion | Archive Thermic Laser | -7/Zion | Archive Force Booster | -7/Zion | Archive Chainsword | -7/Zion | Archive Flexi-carbon Leg | -7/Zion | Archive Arc Projector | -7/Zion | Archive Fusion Compressor | -7/Zion | Archive Lyr. Light Armor Plating | -7/Zion | Archive Nuclear Pulse Thruster | -7/Zion | Archive Energy Filter | -7/Zion | Archive Imp. Component Analysis Suite | -7/Zion | Archive HERF Cannon | -7/Zion | Archive Robot Schematics ------------------ L-41 Fighter | -7/Zion | Archive K-01 Serf | -7/Zion | Archive Fabricated ------------ Nothing Repaired ---------- Nothing Studied --------- None Alien Tech Used ----------------- None Achievements -------------- None Challenges ------------ None Game ------ Seed NeutronWeaponsMapper Manual? 0 Play Time 00:15:59 Cumulative 365.4 hours Start 2026.07.08 @ 16:57:26 End 2026.07.08 @ 17:16:47 Sessions 1 Manual Loads 0 Difficulty Rogue Special Mode None Game No. 903 Rogue 901 Adventurer 2 Explorer 0 Win Type - Total 1 Types 1/0/0/0/0/0/0/0/0/0 Lore% 51 Gallery% 67 Achievement% 53 Wizard Run 0 Options --------- Layout 2 ASCII 0 Keyboard 0 Movement Mouse Keybinds 0 Fullscreen 1 Font 24/Smallcaps Map View 50x44 Zoom Use 0% Tactical HUD 0 Map Filters NONE Filters NONE Steam 1 RUN: e96bbfbf-13a3-4b1f-83e3-029460dffbf8